Cogmind - Beta 16 @@@ ROGUE MODE // 2025.10.26 @ 14:34:32 Player: TapeIsSticky Result: Self-destructed Performance ------------- Evolutions (2) 1000 Regions Visited (4) 800 Robots Destroyed (11) 55 Value Destroyed (100) 100 Prototype IDs (2) 40 Alien Tech Used (0) 0 Bonus (200) 200 TOTAL SCORE: 2195 Bonus ------- Pacifist 200 Cogmind --------- Core Integrity 550/550 Matter 290/300 Energy 100/100 System Corruption 0% Temperature Cool (0) Movement Flying (35) Location -8/Materials Parts ------- > --- POWER (1) -------- (None) > --- PROPULSION (4) --- Improved VTOL Module > --- UTILITY (4) ------ (None) > --- WEAPON (2) ------- (None) > --- INVENTORY (5) ---- Ion Engine Hardened Light Armor Plating Improved EM Shotgun Improved Assault Rifle Mini Grenade Launcher Peak State ------------ > --- POWER ------------ (None) > --- PROPULSION ------- Light Treads Light Treads Light Treads > --- UTILITY ---------- Advanced Weight Redist. System > --- WEAPON ----------- Assault Rifle Improved Assault Rifle > --- INVENTORY -------- Ion Engine Hardened Light Armor Plating Improved EM Shotgun Improved Assault Rifle Mini Grenade Launcher [Rating: 11] Favorites ----------- Power None Propulsion Light Treads Treads Light Treads Flight Unit Improved VTOL Module Utility Advanced Weight Redist. System Device Advanced Weight Redist. System Weapon Assault Rifle Energy Gun Small Laser Ballistic Gun Assault Rifle Launcher Mini Grenade Launcher Build | -11 -10 -9 -9 -8 ------- Run | Yrd Mat Mat Min Mat Slots Evolved 4 | . . 2 . 2 Power . | . . . . . Propulsion 2 | . . 1 . 1 Utility 2 | . . 1 . 1 Weapon . | . . . . . Parts Attached 9 | . . 7 1 1 Power . | . . . . . Engine . | . . . . . Core . | . . . . . Reactor . | . . . . . Propulsion 4 | . . 3 . 1 Treads 3 | . . 3 . . Leg . | . . . . . Wheel . | . . . . . Hover . | . . . . . Flight 1 | . . . . 1 Utility 1 | . . 1 . . Device 1 | . . 1 . . Storage . | . . . . . Processor . | . . . . . Hackware . | . . . . . Protection . | . . . . . Artifact . | . . . . . Weapon 4 | . . 3 1 . Energy Gun 1 | . . 1 . . Energy Cannon . | . . . . . Ballistic Gun 2 | . . 2 . . Ballistic Cannon . | . . . . . Launcher 1 | . . . 1 . Special Weapon . | . . . . . Impact Weapon . | . . . . . Slashing Weapon . | . . . . . Piercing Weapon . | . . . . . Special Melee Weapon . | . . . . . Unidentified Prototypes 2 | . . 1 . 1 Parts Lost 1 | . . 1 . . Power . | . . . . . Propulsion 1 | . . 1 . . Utility . | . . . . . Weapon . | . . . . . Highest Loss Streak 1 | . . 1 . . To Critical Strikes . | . . . . . Average Backups 4 | 3 5 4 4 5 Power . | . 1 1 1 1 Propulsion . | 1 2 . . . Utility . | . . . 1 1 Weapon 2 | 1 2 2 2 3 Tool/Special . | . . . . . Unused Backups 3 | . . . . 3 Power 1 | . . . . 1 Propulsion . | . . . . . Utility 1 | . . . . 1 Weapon 1 | . . . . 1 Tool/Special . | . . . . . Average Slot Usage (%) 21 | . . 35 1 6 Treads 11 | . . 19 . . Device 3 | . . 6 . . Ballistic Gun 3 | . . 6 . . Peak Build Rating 11 | . . 11 2 5 Average Rating 3 | . . 5 1 4 On Entrance . | . . . 1 1 Avg Prop Armor Cover (%) 41 | . . 41 . . Naked Turns 111 | . 36 10 59 6 Heaviest Build 5 | . . 5 . . Greatest Support 60 | 3 3 60 3 5 Greatest Overweight (x) . | . . . . . Average Overweight (x) . | . . . . . Largest Inventory Capacity 5 | 5 5 5 5 5 Average Capacity 5 | 5 5 5 5 5 Most Carried 5 | 5 5 5 5 5 Average Carried 4 | 3 5 4 4 5 Final Capacity 5 | 5 5 5 5 5 Final Carried 5 | 5 5 5 5 5 Class Distribution -------------------- 100% | Mutant Dominant Class ---------------- Mutant | -10/Materials Mutant | -9/Materials Mutant | -9/Mines Mutant | -8/Materials Resources | -11 -10 -9 -9 -8 ----------- Run | Yrd Mat Mat Min Mat Matter Collected 383 | 200 . 125 58 . Remotely . | . . . . . Salvage Created 280 | . . 271 9 . Parts 18 | . . 16 2 . Haulers Intercepted 1 | . . 1 . . Recyclers Shooed 3 | . . 2 1 . Parts Field Recycled . | . . . . . Retrieved Matter . | . . . . . Parts Self-Destructed . | . . . . . Prevented . | . . . . . Parts Restored . | . . . . . Kills | -11 -10 -9 -9 -8 ------- Run | Yrd Mat Mat Min Mat Combat Hostiles Destroyed 7 | . . 4 3 . Guns 4 | . . 4 . . AOE 3 | . . . 3 . Classes Destroyed 4 | . . 4 . . Hauler 1 | . . 1 . . Recycler 2 | . . 2 . . Watcher 1 | . . 1 . . Swarmer 7 | . . 4 3 . Best Kill Streak 8 | . . 8 3 . Combat Bots Only 3 | . . 3 3 . Max Kills in Single Turn 2 | . . 1 2 . Gunslinging . | . . . . . Exploded 2 | . . . 2 . Melee . | . . . . . Uniques/NPCs Destroyed . | . . . . . Combat | -11 -10 -9 -9 -8 -------- Run | Yrd Mat Mat Min Mat Hostile Shots Fired 59 | . 4 46 9 . Missed 22 | . 4 11 7 . Hits 37 | . . 35 2 . Projectile 37 | . . 35 2 . Damage Taken 386 | . 3 325 58 . Core 106 | . 3 45 58 . Absorbed by Shields . | . . . . . Core Remaining (%) 90 | 100 98 . 74 . Volleys Fired 14 | . . 12 2 . Largest 2 | . . 2 1 . Hottest 60 | . . 60 30 . Shots Fired 26 | . . 24 2 . Gun 24 | . . 24 . . Cannon . | . . . . . Launcher 2 | . . . 2 . Special . | . . . . . Kinetic 18 | . . 18 . . Thermal 6 | . . 6 . . Explosive 2 | . . . 2 . Electromagnetic . | . . . . . Robot Hit Streak 9 | . . 8 9 . Robot Miss Streak 2 | . . 2 . . Penetration Max . | . . . . . Secondary Targets 1 | . . 1 . . Max Gunslinging Chain 1 | . . 1 . . Shots Hit Robots 17 | . . 16 1 . Core Hits 10 | . . 8 2 . Critical Kills . | . . . . . Critical Parts Destroyed . | . . . . . Critical Strikes . | . . . . . Melee Attacks . | . . . . . Impact . | . . . . . Slashing . | . . . . . Piercing . | . . . . . Sneak Attacks . | . . . . . Combat Hostiles . | . . . . . Follow-up Attacks . | . . . . . Damage Inflicted 527 | . 7 233 287 . Guns 232 | . . 232 . . Cannons . | . . . . . Explosions 284 | . . . 284 . Melee . | . . . . . Ramming 11 | . 7 1 3 . Kinetic 189 | . . 189 . . Thermal 43 | . . 43 . . Explosive 284 | . . . 284 . Electromagnetic . | . . . . . Impact . | . . . . . Slashing . | . . . . . Piercing . | . . . . . Highest Corruption . | . . . . . Average Corruption . | . . . . . Corruption Purged . | . . . . . Corruption Blocked . | . . . . . Overload Shots . | . . . . . Overflow Damage 51 | . . . 51 . Projectiles . | . . . . . Explosions 51 | . . . 51 . Melee . | . . . . . Knockbacks . | . . . . . Impact . | . . . . . Kinetic . | . . . . . Secondary . | . . . . . Self-Inflicted Damage 29 | . 3 . 26 . Shots 1 | . . . 1 . Rammed 4 | . 1 1 2 . Targets Rammed 4 | . 1 1 2 . Kicked . | . . . . . Crushed . | . . . . . Highest Temperature 2 | . . . 2 . Average Temperature 2 | . . . 2 . Received Heat Transfer 54 | . . 54 . . Siege Activations . | . . . . . Martial Activations . | . . . . . Shielding Activations . | . . . . . Robots Disrupted . | . . . . . Combat Hostiles . | . . . . . Robots Corrupted . | . . . . . Combat Hostiles . | . . . . . Parts Fried . | . . . . . Impact Corruptions . | . . . . . Robots Melted . | . . . . . Combat Hostiles . | . . . . . Parts Melted . | . . . . . Heat Transferred 100 | . . 100 . . Parts Sabotaged . | . . . . . Parts Stolen . | . . . . . Parts Stripped . | . . . . . Power Chain Reactions . | . . . . . Alert | -11 -10 -9 -9 -8 ------- Run | Yrd Mat Mat Min Mat Maximum Alert Level . | . . . . . Low Security (%) 100 | 100 100 100 100 100 Level 1 . | . . . . . Level 2 . | . . . . . Level 3 . | . . . . . Level 4 . | . . . . . Level 5 . | . . . . . High Security . | . . . . . Max Security . | . . . . . Peak Influence 108 | . 9 84 108 37 Initial 37 | . . . 24 37 Average 24 | . 3 23 47 32 Influence Increases 227 | . 9 114 104 . Destroy 0b10 Robot/C 140 | . . 80 60 . Destroy 0b10 Robot/NC 20 | . . 20 . . Destroy Leader 24 | . . 14 10 . Successful Hack 9 | . 9 . . . Destroy Structure 19 | . . . 19 . Lose Combat Pursuer 15 | . . . 15 . Influence Decreases 200 | . 9 50 70 71 Entered New Map 101 | . . . 40 61 Time Decay 89 | . 9 40 30 10 Lost Part 10 | . . 10 . . Squads Dispatched 2 | . . 1 . 1 Investigation . | . . . . . Extermination . | . . . . . Reinforcement 2 | . . 1 . 1 Assault . | . . . . . Garrison . | . . . . . Intercept . | . . . . . Searches Triggered . | . . . . . Construction Impeded . | . . . . . Haulers Reinforced . | . . . . . Active Scanning Responses . | . . . . . Cargo Convoy Interrupts . | . . . . . Stealth | -11 -10 -9 -9 -8 --------- Run | Yrd Mat Mat Min Mat Distress Signals 1 | . . 1 . . Communications Jammed . | . . . . . Distress Signals . | . . . . . Times Spotted 29 | . 3 14 11 1 Peak Tracking Total 8 | . 3 8 6 1 Tactical Retreats 1 | . . . 1 . Traps | -11 -10 -9 -9 -8 ------- Run | Yrd Mat Mat Min Mat Traps Triggered 2 | . . 2 . . Indirectly . | . . . . . Trap Hack Attempts . | . . . . . Triggered . | . . . . . Disarmed . | . . . . . Reprogrammed . | . . . . . Reused . | . . . . . Traps Extracted . | . . . . . Installed . | . . . . . Triggered . | . . . . . Machines | -11 -10 -9 -9 -8 ---------- Run | Yrd Mat Mat Min Mat Machines Disabled . | . . . . . Max in Single Turn . | . . . . . Machines Repaired . | . . . . . Machines Dismantled . | . . . . . Machines Sabotaged . | . . . . . Overloaded Fab Kills . | . . . . . Hacking | -11 -10 -9 -9 -8 --------- Run | Yrd Mat Mat Min Mat Machines Accessed 5 | . 1 1 . 3 Terminals 5 | . 1 1 . 3 Fabricators . | . . . . . Repair Stations . | . . . . . Recycling Units . | . . . . . Scanalyzers . | . . . . . Garrison Access . | . . . . . Total Hacks 8 | . 2 2 . 4 Successful 1 | . 1 . . . Failed 7 | . 1 2 . 4 Catastrophic 5 | . . 2 . 3 Database Lockouts . | . . . . . Manual 8 | . 2 2 . 4 Terminals 8 | . 2 2 . 4 Fabricators . | . . . . . Repair Stations . | . . . . . Recycling Units . | . . . . . Scanalyzers . | . . . . . Garrison Access . | . . . . . Terminal Hacks 1 | . 1 . . . Level Access Points 1 | . 1 . . . Fabricator Hacks . | . . . . . Repair Station Hacks . | . . . . . Recycling Unit Hacks . | . . . . . Scanalyzer . | . . . . . Garrison Access Hacks . | . . . . . Unauthorized Hacks . | . . . . . Terminals . | . . . . . Fabricators . | . . . . . Repair Stations . | . . . . . Recycling Units . | . . . . . Scanalyzers . | . . . . . Garrison Access . | . . . . . Data Cores Recovered . | . . . . . Used . | . . . . . Hacking Detections 4 | . 1 1 . 2 Full Trace Events 1 | . . . . 1 Feedback Events . | . . . . . Feedback Blocked . | . . . . . Robot Schematics Acquired . | . . . . . Robots Built . | . . . . . Authchips . | . . . . . Time . | . . . . . Total Robot Build Rating . | . . . . . Part Schematics Acquired . | . . . . . Parts Built . | . . . . . Authchips . | . . . . . Time . | . . . . . Total Part Build Rating . | . . . . . Part Studies Acquired . | . . . . . Parts Repaired . | . . . . . Time . | . . . . . Parts Recycled . | . . . . . Recycled Matter . | . . . . . Retrieved Matter . | . . . . . Retrieved Components . | . . . . . Parts Scanalyzed . | . . . . . Part Schematics Acquired . | . . . . . Parts Damaged . | . . . . . Bothacking | -11 -10 -9 -9 -8 ------------ Run | Yrd Mat Mat Min Mat Used RIF Installer . | . . . . . Robots Hacked . | . . . . . Non-combat . | . . . . . Combat . | . . . . . Robot Hacks Applied . | . . . . . Relay Couplers Released . | . . . . . Fabnet Peak Effective % . | . . . . . Robots Rewired . | . . . . . Allies Hacked . | . . . . . Hacks Repelled . | . . . . . Allies | -11 -10 -9 -9 -8 -------- Run | Yrd Mat Mat Min Mat Total Allies . | . . . . . Largest Group . | . . . . . Highest-Rated Group . | . . . . . Highest-Rated Ally . | . . . . . Total Orders . | . . . . . Ally Attacks . | . . . . . Total Damage . | . . . . . Kills . | . . . . . Allies Corrupted . | . . . . . Allies Melted . | . . . . . Intel | -11 -10 -9 -9 -8 ------- Run | Yrd Mat Mat Min Mat Active Infowar (turns) . | . . . . . Robot Analysis Total . | . . . . . Derelict Logs Recovered . | . . . . . Drone Launches . | . . . . . Drone Recoveries . | . . . . . Exploration | -11 -10 -9 -9 -8 ------------- Run | Yrd Mat Mat Min Mat Turns Passed 373 | 41 36 198 63 35 Spaces Moved 461 | 73 70 117 112 89 Core 307 | 73 70 41 112 11 Treads 76 | . . 76 . . Legs . | . . . . . Wheels . | . . . . . Hover . | . . . . . Flight 78 | . . . . 78 Fastest Speed 35 | 50 50 50 50 35 Average Speed 65 | 50 50 121 50 36 Slowest Speed 160 | 50 50 160 50 50 Overloaded Moves . | . . . . . Propulsion Burnouts . | . . . . . Robots Hopped 1 | . . . . 1 Potential Cave-ins . | . . . . . Cave-ins Triggered . | . . . . . Exploration Rate (%) 16 | 4 22 16 28 13 Regions Visited 4 Branch Regions 1 Pre-discovered Areas . | . . . . . Known Exits Taken 1 | . 1 . . . Unknown Exits Taken 3 | 1 . 1 1 . Scrap Searched 1 | . . . 1 . Spaces Dug 12 | . . . 12 . Terrain Destroyed 24 | . . . 24 . Melee . | . . . . . Projectile . | . . . . . AOE 24 | . . . 24 . Terrain Rammed . | . . . . . Walls Destroyed . | . . . . . Machines Disabled . | . . . . . Actions | -11 -10 -9 -9 -8 --------- Run | Yrd Mat Mat Min Mat Total 497 | 77 70 144 117 89 Wait . | . . . . . Move 456 | 72 69 116 112 87 Hop 1 | . . . . 1 Pick Up 9 | 5 . 4 . . Fast Attach 7 | . . 6 . 1 Attach 5 | . . 4 1 . Detach 1 | . . . 1 . Swap 1 | . . 1 . . Drop . | . . . . . Fire 14 | . . 12 2 . Melee . | . . . . . Ram 2 | . 1 . 1 . Kick . | . . . . . Crush 1 | . . 1 . . Escape Stasis . | . . . . . Rewire . | . . . . . Trap . | . . . . . Miscellaneous . | . . . . . Route ------- -11/Scrapyard -10/Materials (discovered 4 exits: *Mat x3 / [*Min]) -9/Materials -9/Mines -8/Materials History --------- Turn | Location | Event 3 | -11/Scrapyard | Discovered new exit (range 16) 42 | -11/Scrapyard | Entered Materials 46 | -10/Materials | Identified exit to Materials 61 | -10/Materials | Discovered new exit (range 14) 78 | -10/Materials | Entered another Materials area 78 | -9/Materials | Evolved 2 slots: Propulsion x1, Utility x1 263 | -9/Materials | Discovered new exit (range 9) 276 | -9/Materials | Released all parts (5) 276 | -9/Materials | Entered Mines 302 | -9/Mines | Build established: Mutant 324 | -9/Mines | Assembled infested the area 324 | -9/Mines | Discovered new exit (range 13) 329 | -9/Mines | Assisted by a Guerilla fighting off Assembled 339 | -9/Mines | Entered Materials 339 | -8/Materials | Evolved 2 slots: Propulsion x1, Utility x1 374 | -8/Materials | Self-destructed Last Messages --------------- 00335_ as-01662 destroyed. 00336_ K-01 Serf collects debris. 00336_ as-41394 destroyed. 00337_ The unstable cave ceiling collapses. 00337_ K-01 Serf collects debris. 00339_ Acquired 26 matter. 00339_ as-21555 destroyed. 00339_ Slammed into K-01 Serf. PARAMETERS=PROPULSION+1,UTILITY+1 LOCATION=UNKNOWN GOAL=ESCAPE 00345_ Acquired Prototype Flight Unit. 00345_ Identified Imp. VTOL Module. 00366_ O-24 Administrator: "IFF HANDSHAKE FAILED. SECURING TERMINAL." 00369_ Connecting with Terminal... 00369_ Current location identified: Materials 00370_ ALERT: Hostiles spotted, dispatching reinforcements to Terminal M008. 00370_ Connecting with Terminal... Map ----- +----------------------------------------------------+ | ?????????????????????????????????????????????????? | | ?????????????????????????????????????????????????? | | ?????????????????????????????????????????????????? | | ?????????????????????????????????????????????????? | | ?????????????????????????????????????????????????? | | ?????????????????????????????????????????????????? | | ?????????????????????????????????????????????????? | | ?????????????????????????????????????????????????? | | ?????????????????????????????????????????????????? | | ?????????????????????????????????????????????????? | | ????????????? ? ?????????????????????????????????? | | ???????????? ?????????????????????????????????? | | ??????????? " ?????????????????????????????????? | | ???????????? ?????????????????????????????????? | | ???????????? ?????????????????????????????????? | | ????????????# #????????????????????????????????? | | ????????????# #????????????????????????????????? | | ????????????# #????????????????????????????????? | | ????????????# #????????????????????????????????? | | ????????????# #????????????????????????????????? | | ????????????# #????????????????????????????????? | | ???????????## ##?????###+###????????? ?????????? | | ???????????# = ####### ###### ?????????? | | ???????????# t ????????? | | ???????????+ T T ????????? | | ???????????# @ ????????? | | ???????????# ####### #####???????????????? | | ???????????###+########## ##???????????????????? | | ???????????# # #????????????????????? | | ???????????#""" """ """ # #????????????????????? | | ???????????#"T """ """ # +????????????????????? | | ???????????#""" """ """ # #????????????????????? | | ???????????# # #????????????????????? | | ??????????#######+####### #????????????????????? | | ??????????# #????????????????????? | | ??????????# #????????????????????? | | ??????????# + ?????????????????? | | ??????????# ###+####### # ??????????????????? | | ??????????# #?????????? #????????????????????? | | ??????????# #?????????? #????????????????????? | | ??????????# #?????????? ?????????????????????? | | ??????????# #??????????????????????????????????? | | ??????????# #??????????????????????????????????? | | ??????????# #??????????????????????????????????? | | ??????????# #??????????????????????????????????? | | ??????????# #??????????????????????????????????? | | ??????????# #??????????????????????????????????? | | ??????????# #??????????????????????????????????? | | ??????????# #??????????????????????????????????? | | ??????????# #??????????????????????????????????? | +----------------------------------------------------+ Best States ------------- Heat Dissipation 31 Energy Generation 5 Energy Capacity 100 Matter Stores 300 Matter Capacity 300 Sight Range 16 Terrain Scan Density 10 Additional Mass Support 9 Evasion (%) 63 Recoil Reduction 3 Item Schematics ----------------- None Robot Schematics ------------------ None Fabricated ------------ Nothing Repaired ---------- Nothing Studied --------- None Alien Tech Used ----------------- None Achievements -------------- Physics Hates This One Trick Challenges ------------ None Game ------ Seed FissionTrackerMegatreads Manual? 0 Play Time 00:04:42 Cumulative 228.0 hours Start 2025.10.26 @ 14:30:33 End 2025.10.26 @ 14:34:32 Sessions 1 Manual Loads 0 Difficulty Rogue Special Mode None Game No. 130 Rogue 130 Adventurer 0 Explorer 0 Win Type - Total 26 Types 11/1/10/1/0/1/1/1/0/0 Lore% 79 Gallery% 69 Achievement% 50 Wizard Run 0 Options --------- Layout 1 ASCII 0 Keyboard 0 Movement Arrows Keybinds 0 Fullscreen 2 Font 24/Tamsyn Map View 50x35 Zoom Use 0% Tactical HUD 1 Map Filters NONE Filters NONE Steam 1 RUN: 07e54828-6b05-4324-aa39-6fef4ccbcdd7